bitfinex-derivatives/quotes_ETHF0:USTF0_20251031
["timestamp","ask_amount","ask_price","bid_price","bid_amount"]
[1761898716193,0.81694079,3830.0,3829.9,4.01590206]
[1761898716596,0.00314079,3830.0,3829.9,4.01590206]
[1761898717797,0.00314079,3830.0,3829.9,44.81590206]
[1761898718687,0.3535,3830.8,3830.7,0.8056]
[1761898718688,0.2337,3830.8,3830.7,0.8056]
[1761898719292,0.8138,3831.1,3831.0,0.8056]
[1761898719492,0.8138,3831.1,3831.0,0.224]
[1761898719692,0.81630372,3831.1,3831.0,0.224]
[1761898721599,0.81630372,3831.1,3831.0,0.8006]
[1761898721800,0.81630372,3831.1,3831.0,4.0084]
[1761898722297,0.81630372,3831.1,3831.0,4.142]
[1761898722496,0.00250372,3831.1,3831.0,4.142]
[1761898724901,0.56620372,3831.1,3831.0,4.142]
[1761898725799,0.797,3830.7,3830.6,3.4226]
[1761898726395,0.797,3830.7,3830.6,3.7794]
[1761898726801,0.797,3830.7,3830.6,3.9992]
[1761898727702,0.797,3830.4,3830.3,0.5716]
[1761898728104,0.797,3830.4,3830.3,0.7914]
[1761898729105,0.2233,3830.4,3830.3,0.7914]
[1761898729308,0.3404,3830.7,3830.3,0.7914]
[1761898729504,3.568,3831.0,3830.9,0.7914]
[1761898729807,3.8013,3831.0,3830.9,0.7914]
[1761898729998,4.1417,3831.0,3830.9,0.7914]
[1761898731410,0.797,3830.6,3830.5,0.4346]
[1761898732909,0.797,3830.6,3830.5,0.7914]
[1761898738915,0.797,3830.6,3830.5,0.4346]
[1761898739322,0.2233,3830.6,3830.5,0.9152]
[1761898739517,3.5482,3831.0,3830.9,0.7914]
[1761898739821,3.7715,3831.0,3830.9,0.7914]
[1761898740123,4.1417,3831.0,3830.9,0.7914]
[1761898740919,4.1417,3831.0,3830.9,0.4346]
[1761898741323,0.797,3830.7,3830.6,0.5716]
[1761898741819,0.797,3830.7,3830.6,0.7914]
[1761898742023,0.797,3830.9,3830.8,0.5766]
[1761898742224,0.79950372,3831.1,3831.0,0.7914]
[1761898742924,0.00250372,3831.1,3831.0,0.9295]
[1761898743931,0.00250372,3831.1,3831.0,4.1373]
[1761898744325,0.00250372,3831.1,3831.0,4.83622081]
[1761898744718,0.00250372,3831.1,3831.0,4.1373]
[1761898744924,0.00250372,3831.1,3831.0,45.96524081]
[1761898745229,0.00250372,3831.1,3831.0,45.26632]
[1761898745424,0.00250372,3831.1,3831.0,46.20405908]
[1761898745621,0.3404,3832.1,3831.0,45.26632]
[1761898745827,0.3404,3832.1,3832.0,0.7914]
[1761898745828,0.797,3832.1,3832.0,0.7914]
[1761898746133,0.87861821,3832.1,3832.0,0.7914]
[1761898746422,0.797,3831.8,3831.7,0.5716]
[1761898746727,0.79947823,3831.8,3831.7,0.5716]
[1761898748028,0.79947823,3831.8,3831.7,0.7914]
[1761898750224,0.79947823,3831.8,3831.4,3.91105339]
[1761898750428,0.9339,3831.5,3831.4,3.4226]
[1761898750628,0.9339,3831.5,3831.4,3.2078]
[1761898751127,0.2233,3831.2,3831.1,0.3568]
[1761898751431,0.3409,3831.7,3831.6,0.2315]
[1761898751629,0.573,3831.7,3831.6,0.4546]
[1761898752030,0.7928,3831.7,3831.6,0.8099]
[1761898756735,0.7928,3831.7,3831.4,3.4309]
[1761898756736,0.9338,3831.5,3831.4,3.4309]
[1761898757132,0.7758,3831.3,3831.2,0.3553]
[1761898757330,0.7758,3831.3,3831.2,0.8053]
[1761898758030,0.7758,3831.3,3831.2,0.45]
[1761898758337,0.7758,3831.3,3831.2,0.2299]
[1761898758835,0.774,3831.0,3830.9,45.06295339]
[1761898759036,0.774,3831.0,3830.9,44.3597]
[1761898759233,0.774,3831.0,3830.9,45.06295339]
[1761898761835,0.774,3831.0,3830.9,41.85515339]
[1761898762933,0.774,3831.0,3830.9,41.1519]
[1761898763332,0.774,3831.0,3830.9,41.85515339]
[1761898763738,0.774,3831.3,3831.2,0.572]
[1761898764036,0.774,3831.3,3831.2,0.8019]
[1761898766241,0.774,3831.3,3831.2,0.2299]
[1761898767841,0.774,3831.3,3831.2,0.5818]
[1761898768448,0.774,3831.3,3831.2,0.2299]
[1761898768944,0.774,3831.3,3831.2,0.5818]
[1761898770247,0.916,3831.0,3830.9,0.70325339]
[1761898770447,0.774,3830.9,3830.8,3.91105339]
[1761898770744,0.774,3830.9,3830.8,4.49285339]
[1761898771346,0.774,3830.9,3830.8,4.71295339]
[1761898772349,0.774,3830.9,3830.8,4.0097]
[1761898773249,0.774,3830.9,3830.8,4.7136473]
[1761898776347,0.774,3830.9,3830.8,1.5058473]
[1761898776650,0.774,3830.4,3830.3,0.8019]
[1761898777344,0.552,3830.7,3830.6,0.2299]
[1761898777550,0.774,3830.7,3830.6,0.8019]
[1761898777849,3.5295,3831.0,3830.9,0.8019]
[1761898778051,3.7598,3831.0,3830.9,0.8019]
[1761898778253,3.9818,3831.0,3830.9,0.8019]
[1761898780147,4.1238,3831.0,3830.9,0.8019]
[1761898780943,3.9818,3831.0,3830.9,0.8019]
[1761898783056,3.9818,3831.0,3830.9,0.8091]
[1761898783249,0.774,3831.0,3830.9,0.8091]
[1761898787950,0.552,3831.0,3830.9,0.8091]
[1761898788453,0.8035,3831.3,3831.2,0.8091]
[1761898788758,0.8035,3831.7,3831.6,0.2311]
[1761898788951,0.88512841,3831.7,3831.6,0.2311]
[1761898789850,0.88512841,3831.7,3831.6,0.8091]
[1761898790251,0.00247823,3831.8,3831.7,0.8091]
[1761898792053,0.23377823,3831.8,3831.7,0.8091]
[1761898792251,0.00247823,3831.8,3831.7,0.8091]
[1761898793159,0.57807823,3831.8,3831.7,0.8091]
[1761898795462,0.23377823,3831.8,3831.7,0.8091]
[1761898795656,0.00247823,3831.8,3831.7,0.8091]
[1761898795853,0.00247823,3831.8,3831.7,1.51307765]
[1761898796655,0.00247823,3831.8,3831.7,1.84202765]
[1761898796858,0.00247823,3831.8,3831.7,42.64202765]
[1761898797356,3.4391,3832.5,3832.4,0.8091]
[1761898797957,3.2078,3832.5,3832.4,0.8091]
[1761898798161,3.2102202,3832.5,3832.4,0.8091]
[1761898798358,0.0024202,3832.5,3832.4,0.8091]
[1761898805061,0.0024202,3832.5,3832.0,0.70276654]
[1761898805062,0.4592,3832.3,3832.0,0.70276654]
[1761898805267,0.1333202,3832.5,3831.6,0.5872]
[1761898805268,0.8035,3831.7,3831.6,0.5872]
[1761898805462,0.5756,3832.0,3831.9,0.2311]
[1761898805671,0.4616202,3832.5,3832.4,0.8091]
[1761898806267,0.8059202,3832.5,3832.4,0.8091]
[1761898807070,0.0024202,3832.5,3832.4,4.0169]
[1761898807469,0.0024202,3832.5,3832.4,4.71966654]
[1761898807671,0.0024202,3832.5,3832.4,4.0169]
[1761898807967,0.5780202,3832.5,3832.4,4.0169]
[1761898808365,0.0024202,3832.5,3832.4,4.0169]
[1761898810165,0.0024202,3832.5,3832.4,4.71966654]
[1761898810362,0.8035,3833.5,3833.4,0.8091]
[1761898810778,0.8035,3833.5,3833.4,0.2311]
[1761898810779,0.9344,3833.5,3833.4,0.2311]
[1761898811076,0.8035,3833.5,3833.4,0.8031]
[1761898811573,0.80574531,3833.5,3833.4,0.80580074]
[1761898814966,0.23354531,3833.5,3833.4,0.80580074]
[1761898815165,0.00224531,3833.5,3833.4,0.80580074]
[1761898815373,0.55404531,3833.5,3833.4,0.80580074]
[1761898816175,0.22214531,3833.5,3833.4,0.80580074]
[1761898816376,0.00224531,3833.5,3833.4,0.80580074]
[1761898817375,0.00224531,3833.5,3833.4,1.13461074]
[1761898817675,0.00224531,3833.5,3833.4,0.80580074]
[1761898819274,0.00224531,3833.5,3833.4,1.50657579]
[1761898819976,0.00224531,3833.5,3833.4,0.80580074]
[1761898820177,0.00224531,3833.5,3833.4,1.50665347]
[1761898820375,0.00224531,3833.5,3833.4,0.80580074]
[1761898821281,0.57944531,3833.5,3833.4,0.80580074]
[1761898821478,0.80094531,3833.5,3833.4,0.80580074]
[1761898821674,0.80094531,3833.5,3833.4,0.23380074]
[1761898821675,0.92964531,3833.5,3833.4,0.23380074]
[1761898822372,0.92964531,3833.5,3833.4,0.81150074]
[1761898823275,0.80094531,3833.5,3833.4,0.81150074]
[1761898823476,0.92964531,3833.5,3833.4,0.81150074]
[1761898823980,0.00224531,3833.5,3833.4,0.81150074]
[1761898825076,0.00224531,3833.5,3833.4,4.01930074]
[1761898827286,0.00224531,3833.5,3833.4,4.34811074]
[1761898829394,0.00224531,3833.5,3833.4,5.28578192]
[1761898830187,0.00224531,3833.5,3833.4,4.95697192]
[1761898830389,0.00224531,3833.5,3833.4,4.01930074]
[1761898833091,0.4568,3834.5,3834.4,0.4498]
[1761898833293,0.4568,3834.5,3834.4,0.8042]
[1761898833490,0.4568,3835.0,3834.9,0.8042]
[1761898833793,0.9274,3835.0,3834.9,0.8042]
[1761898833991,0.7987,3835.0,3834.9,0.8042]
[1761898834190,0.80119849,3835.0,3834.9,0.8042]
[1761898836600,0.00249849,3835.0,3834.9,0.8042]
[1761898837702,0.00249849,3835.0,3834.9,41.6042]
[1761898838998,3.2078,3835.5,3835.4,0.4498]
[1761898839197,0.93321406,3835.9,3835.8,0.8042]
[1761898839198,3.4431,3835.9,3835.8,0.8042]
[1761898839401,0.5772,3835.9,3835.8,0.8042]
[1761898839706,0.7987,3835.9,3835.8,0.8042]
[1761898840008,0.2353,3835.9,3835.8,0.8042]
[1761898840209,0.00204637,3835.9,3835.8,0.8042]
[1761898841209,0.23734637,3835.9,3835.8,0.8042]
[1761898841706,0.57444637,3835.9,3835.8,0.8042]
[1761898841903,0.80274637,3835.9,3835.8,0.8042]
[1761898844915,0.552,3835.6,3835.5,0.4429]
[1761898845112,0.2149,3835.6,3835.5,0.5771]
[1761898845609,0.2149,3835.6,3835.5,0.9109]
[1761898846014,0.55404637,3835.9,3835.8,0.7767]
[1761898846201,0.7054,3835.5,3835.4,0.3338]
[1761898846406,0.4432,3835.2,3835.1,0.7767]
[1761898846910,0.7803,3835.2,3835.1,0.7767]
[1761898847712,0.7803,3835.1,3835.0,3.5416]
[1761898847901,0.7803,3835.1,3835.0,3.7651]
[1761898848102,0.3549,3835.5,3835.4,0.2235]
[1761898848301,0.5832,3835.5,3835.4,0.5573]
[1761898848801,0.9203,3835.5,3835.4,0.5573]
[1761898849002,0.9203,3835.5,3835.4,0.2235]
[1761898849708,0.7803,3835.1,3835.0,3.4272]
[1761898849909,0.7803,3835.1,3835.0,3.6507]
[1761898850112,0.7803,3835.1,3835.0,44.4507]
[1761898850311,0.7803,3835.1,3835.0,44.9187]
[1761898850507,0.7803,3835.1,3835.0,44.7845]
[1761898850912,0.7803,3835.1,3835.0,44.9187]
[1761898852610,0.552,3835.1,3835.0,44.9187]
[1761898853219,0.7803,3835.1,3835.0,44.7845]
[1761898855619,0.7803,3835.1,3835.0,3.9845]
[1761898855913,0.7803,3835.1,3835.0,3.2078]
[1761898856115,0.552,3834.3,3834.2,0.7767]
[1761898856514,0.7803,3834.3,3834.2,0.7767]
[1761898858116,0.7803,3834.2,3834.1,3.2078]
[1761898858316,0.9203,3834.0,3833.9,0.5573]
[1761898858918,0.9203,3834.0,3833.9,0.7767]
[1761898859712,0.7803,3834.0,3833.9,0.7767]
[1761898860108,0.2149,3834.2,3834.1,0.7767]
[1761898860313,0.2149,3834.5,3834.4,0.7767]
[1761898860513,0.4432,3834.5,3834.4,0.7767]
[1761898861019,0.7803,3834.5,3834.4,0.7767]
[1761898862016,0.7803,3834.2,3834.1,3.6507]
[1761898862211,0.7803,3834.2,3834.1,3.4313]
[1761898862416,0.7803,3834.2,3834.1,3.7651]
[1761898862717,0.7803,3834.2,3834.1,44.5651]
[1761898862918,0.7803,3834.2,3834.1,44.2313]
[1761898863116,0.7803,3833.9,3833.8,0.7767]
[1761898863418,0.14,3834.5,3833.7,3.2078]
[1761898863419,0.7803,3834.2,3834.1,0.7767]
[1761898863819,0.7803,3834.2,3834.1,0.2235]
[1761898864916,0.7803,3833.9,3833.8,41.1338]
[1761898865315,0.2149,3833.9,3833.8,41.1338]
[1761898865819,0.3549,3834.5,3834.4,0.4429]
[1761898866118,0.4432,3834.5,3834.4,0.7767]
[1761898866521,0.5654,3834.8,3834.7,0.2194]
[1761898866714,0.7803,3834.8,3834.7,0.7767]
[1761898867626,0.7803,3834.8,3834.7,3.9845]
[1761898870518,0.7803,3834.8,3834.7,0.7767]
[1761898871421,0.7803,3834.8,3833.8,41.12877]
[1761898871422,0.2197,3834.0,3833.8,40.8]
[1761898871628,0.9363,3834.0,3833.9,0.2222]
[1761898872131,0.7952,3833.7,3833.6,0.7829]
[1761898872925,0.2336,3833.7,3833.6,0.7829]
[1761898873126,0.7952,3834.0,3833.9,0.4593]
[1761898873630,0.7952,3834.0,3833.9,0.7829]
[1761898874032,0.9363,3834.0,3833.9,0.4593]
[1761898874238,0.9363,3834.0,3833.9,0.2222]
[1761898874640,0.9363,3833.5,3833.4,0.00270074]
[1761898875633,0.7952,3833.5,3833.4,0.78560074]
[1761898877123,8.9366,3833.5,3833.4,0.00270074]
[1761898877327,12.1444,3833.5,3833.4,0.00270074]
[1761898877529,0.793,3832.3,3832.2,3.7974]
[1761898877730,0.793,3832.3,3832.2,3.4425]
[1761898878532,0.7961145,3832.3,3832.2,3.44492172]
[1761898878928,0.4362,3831.5,3831.4,3.4425]
[1761898879127,0.4362,3831.5,3831.2,1.29257118]
[1761898879128,0.5719,3831.1,3831.0,3.4425]
[1761898879331,0.793,3831.1,3831.0,3.4425]
[1761898879535,0.793,3831.1,3831.0,3.2078]
[1761898879731,0.2211,3830.7,3830.6,0.2347]
[1761898880029,0.4362,3829.9,3829.8,3.4425]
[1761898880231,0.793,3829.9,3829.8,3.21094643]
[1761898880425,0.793,3829.9,3829.8,3.44564643]
[1761898880624,0.5779,3830.2,3830.1,0.4551]
[1761898880932,0.793,3829.9,3829.8,3.44564643]
[1761898881135,0.793,3829.9,3829.8,3.21094643]
[1761898881536,0.793,3829.9,3829.8,4.02094643]
[1761898881835,0.793,3829.9,3829.8,3.66604643]
[1761898882630,0.793,3829.9,3829.8,4.02094643]
[1761898883135,0.4362,3829.9,3829.8,4.02094643]
[1761898883336,0.2211,3829.9,3829.8,4.02094643]
[1761898883535,0.793,3829.9,3829.8,4.02094643]
[1761898883738,0.5779,3830.3,3830.2,0.81]
[1761898884038,0.793,3830.3,3830.2,0.81]
[1761898886135,0.5779,3830.3,3830.2,0.81]
[1761898886334,0.5779,3830.5,3830.4,0.81]
[1761898886528,0.3568,3830.9,3830.4,0.81]
[1761898886734,0.793,3830.9,3830.8,0.81]
[1761898887128,0.5779,3831.2,3831.1,0.81]
[1761898887539,0.793,3831.2,3831.1,0.81]
[1761898888033,0.793,3831.2,3831.1,4.0178]
[1761898888537,0.6763,3831.5,3831.4,0.5896]
[1761898888734,0.793,3831.5,3831.4,0.81]
[1761898889130,0.2211,3831.5,3831.4,0.81]
[1761898889337,0.2211,3831.6,3831.5,0.5896]
[1761898889640,0.793,3831.3,3831.2,0.5896]
[1761898890435,0.793,3831.2,3831.1,3.4425]
[1761898890644,0.793,3831.2,3831.1,4.0178]
[1761898891036,0.793,3831.2,3831.1,44.8178]
[1761898892442,0.793,3831.5,3831.4,0.81]
[1761898892746,0.9344,3831.5,3831.4,0.2347]
[1761898893039,0.793,3831.2,3831.1,44.3627]
[1761898893942,0.793,3831.2,3831.1,41.1549]
[1761898894143,0.793,3831.2,3831.1,0.3549]
[1761898894340,0.793,3831.2,3831.1,0.2347]
[1761898894544,0.9344,3830.5,3830.3,3.2078]
[1761898894735,0.793,3830.4,3830.3,3.2078]
[1761898895135,0.793,3830.4,3830.3,3.4425]
[1761898895350,0.793,3830.4,3830.3,3.7974]
[1761898895641,0.793,3830.4,3830.3,3.4425]
[1761898895841,0.793,3830.4,3830.3,3.2078]
[1761898896250,0.793,3830.4,3830.3,3.4425]
[1761898896645,0.793,3830.4,3830.3,4.0178]
[1761898897147,0.793,3830.4,3830.3,3.6629]
[1761898897348,0.793,3830.4,3830.3,3.4425]
[1761898897648,0.793,3830.1,3830.0,0.2347]
[1761898897850,0.793,3830.1,3830.0,0.5896]
[1761898899154,3.644,3830.4,3830.3,0.81]
[1761898899852,4.0008,3830.4,3830.3,0.4551]
[1761898900045,4.0008,3830.4,3830.3,0.2347]
[1761898900249,0.793,3829.9,3829.6,3.2078]
[1761898901154,4.0008,3829.9,3829.1,0.3249]
[1761898901556,4.0008,3829.9,3829.1,41.1249]
[1761898901957,0.793,3829.9,3829.8,0.55164643]
[1761898902156,0.2211,3829.9,3829.8,0.78194643]
[1761898902355,0.7701,3829.9,3829.8,0.00314643]
[1761898902549,0.7701,3829.9,3829.8,0.55164643]
[1761898902750,0.7701,3829.9,3829.8,0.78194643]
[1761898903152,0.7701,3829.9,3829.8,0.00314643]
[1761898903556,0.7701,3829.9,3829.8,0.22674643]
[1761898904759,0.7701,3829.9,3829.8,0.00314643]
[1761898906356,0.85176757,3829.9,3829.8,0.00314643]
[1761898908261,4.05956757,3829.9,3829.8,0.00314643]
[1761898911557,0.2342,3828.5,3828.4,3.4314]
[1761898911755,0.7832,3828.5,3828.4,3.6617]
[1761898912157,0.7832,3828.5,3828.4,3.9866]
[1761898912356,0.9136,3829.0,3828.9,0.4539]
[1761898912555,0.99528613,3829.0,3828.9,0.2236]
[1761898912753,0.99821809,3829.0,3828.9,0.2236]
[1761898913261,0.3293,3828.7,3828.4,3.21066678]
[1761898913564,0.9136,3828.5,3828.4,3.43426678]
[1761898913963,0.9136,3828.5,3828.4,3.21066678]
[1761898914260,0.9136,3828.5,3828.4,0.00286678]
[1761898915352,4.1214,3828.5,3828.4,0.00286678]
[1761898915557,4.20309896,3828.5,3828.4,0.00286678]
[1761898915764,4.39416665,3828.5,3828.4,0.00286678]
[1761898915965,4.20309896,3828.5,3828.4,0.00286678]
[1761898916462,0.5635,3827.2,3827.1,3.4314]
[1761898916662,0.7832,3827.2,3827.1,3.4314]
[1761898916966,0.7832,3827.2,3827.1,3.9866]
[1761898917171,0.7832,3827.2,3827.1,3.6617]
[1761898917355,0.4539,3826.7,3826.6,3.2078]
[1761898917560,0.2342,3826.5,3826.4,0.7788]
[1761898917862,0.5843,3827.0,3826.9,0.2236]
[1761898918465,0.9136,3827.0,3826.9,0.2236]
[1761898918760,0.7832,3827.4,3827.3,0.2236]
[1761898919560,0.7832,3827.4,3827.3,0.5485]
[1761898919762,0.7832,3827.4,3827.3,0.7788]
[1761898920474,0.3293,3827.4,3827.3,0.7788]
[1761898920765,3.6617,3827.7,3827.6,0.7788]
[1761898921059,3.991,3827.7,3827.6,0.7788]
[1761898921260,0.2342,3827.7,3827.6,0.7788]
[1761898921666,0.5635,3828.0,3827.9,0.7788]
[1761898921866,0.7832,3828.3,3828.2,0.7788]
[1761898922367,0.5635,3828.3,3828.2,0.7788]
[1761898922567,0.7832,3828.3,3828.2,0.7788]
[1761898922769,0.7832,3828.3,3828.2,0.4539]
[1761898922966,0.9136,3828.0,3827.9,0.2236]
[1761898923567,0.7832,3827.7,3827.6,3.2078]
[1761898923758,0.1304,3828.0,3827.3,0.7788]
[1761898923759,0.2342,3827.4,3827.3,0.7788]
[1761898924066,0.5635,3827.0,3826.9,0.7788]
[1761898924362,0.7832,3827.0,3826.9,0.7788]
[1761898925067,0.9136,3827.0,3826.9,0.2236]
[1761898925265,0.7832,3826.7,3826.6,0.5485]
[1761898925567,0.7832,3826.7,3826.6,0.7788]
[1761898926866,0.2342,3827.0,3826.9,0.5552]
[1761898927169,0.3293,3827.1,3826.6,0.3249]
[1761898927471,0.7832,3827.1,3827.0,0.2236]
[1761898927767,0.7832,3827.1,3827.0,0.7788]
[1761898927969,0.7832,3827.1,3827.0,0.5485]
[1761898928663,0.7832,3827.1,3827.0,0.7788]
[1761898929768,0.2342,3826.8,3826.7,0.3249]
[1761898929966,0.7832,3826.8,3826.7,0.5485]
[1761898930168,0.7832,3826.8,3826.7,0.7788]
[1761898930359,0.2342,3826.8,3826.7,0.7788]
[1761898931074,0.8145,3826.8,3826.7,0.7788]
[1761898931668,0.8052,3826.5,3826.4,41.15610413]
[1761898931869,0.9401,3826.5,3826.4,0.22790413]
[1761898932170,0.9401,3826.5,3826.4,0.58070413]
[1761898932366,0.9401,3826.5,3826.4,0.22790413]
[1761898933371,0.9401,3826.5,3826.4,0.79860413]
[1761898933672,0.8052,3826.5,3826.4,0.79860413]
[1761898935873,0.9401,3826.5,3826.4,0.44580413]
[1761898936074,0.9401,3826.5,3826.4,0.79860413]
[1761898937069,0.8052,3826.5,3826.4,0.79860413]
[1761898938468,0.4629,3826.5,3826.4,0.79860413]
[1761898938675,0.2249,3826.5,3826.4,0.79860413]
[1761898938978,0.5672,3826.5,3826.4,0.79860413]
[1761898939573,0.7897,3826.5,3826.4,0.79860413]
[1761898942674,0.9266,3826.5,3826.4,0.00330413]
[1761898942881,1.008338,3826.5,3826.4,0.00330413]
[1761898943778,1.008338,3826.5,3826.4,0.55930413]
[1761898944077,0.87143762,3826.5,3826.4,0.78520413]
[1761898944977,1.00833762,3826.5,3826.4,0.78520413]
[1761898945173,1.00833762,3826.5,3826.4,0.45510413]
[1761898945375,1.00833762,3826.5,3826.4,0.78520413]
[1761898947175,1.00833762,3826.5,3826.4,0.45510413]
[1761898947380,1.00833762,3826.5,3826.4,0.22920413]
[1761898948379,1.00833762,3826.5,3826.4,0.55930413]
[1761898949383,0.08173762,3826.5,3826.4,0.78520413]
[1761898949776,0.30783762,3826.5,3826.4,0.78520413]
[1761898950584,3.6564,3826.8,3826.7,0.7819]
[1761898950784,3.7381349,3826.8,3826.7,0.7819]
[1761898951081,4.0804349,3826.8,3826.7,0.7819]
[1761898951281,5.01080235,3826.8,3826.7,0.7819]
[1761898951584,5.01080235,3826.8,3826.7,0.4518]
[1761898951780,0.7909,3826.5,3826.4,0.78520413]
[1761898951977,1.0095349,3826.5,3826.4,0.78520413]
[1761898952183,1.0095349,3826.5,3826.4,0.22920413]
[1761898952380,1.0095349,3826.5,3826.4,0.00330413]
[1761898952683,1.0095349,3826.5,3826.4,0.22920413]
[1761898952877,1.0095349,3826.5,3826.4,0.55930413]
[1761898953077,1.0095349,3826.5,3826.4,0.78520413]
[1761898954488,0.8726349,3826.5,3826.4,0.78520413]
[1761898955075,0.93036745,3826.9,3826.8,0.4518]
[1761898955281,0.93036745,3827.1,3827.0,0.9167]
[1761898955480,0.7909,3827.1,3827.0,0.7819]
[1761898955686,0.4486,3827.5,3827.4,0.7819]
[1761898955883,0.30781161,3827.5,3827.4,0.7819]
[1761898956275,4.08041161,3827.5,3827.4,0.7819]
[1761898956480,3.42641161,3827.5,3827.0,0.2259]
[1761898956681,0.4486,3827.1,3827.0,0.7819]
[1761898956886,0.53031161,3827.1,3827.0,0.7819]
[1761898957085,0.87261161,3827.1,3827.0,0.7819]
[1761898957282,0.08171161,3827.1,3827.0,0.9162]
[1761898957491,0.5684,3827.3,3827.2,0.7819]
[1761898957788,0.65011537,3827.3,3827.2,0.7819]
[1761898958587,0.2261,3827.3,3827.2,0.7819]
[1761898958883,0.7909,3827.6,3827.5,0.7819]
[1761898959083,1.80771373,3827.6,3827.5,0.7819]
[1761898959280,0.87261432,3827.6,3827.5,0.7819]
[1761898960383,0.08171432,3827.6,3827.5,0.9167]
[1761898960585,0.7909,3827.9,3827.8,0.556]
[1761898960883,0.784,3827.6,3827.5,0.4602]
[1761898961277,0.784,3827.6,3827.5,0.7975]
[1761898961790,0.2228,3827.9,3827.8,0.803]
[1761898961991,0.7817,3827.9,3827.8,0.803]
[1761898962983,0.2228,3827.9,3827.8,0.803]
[1761898963182,0.2228,3827.9,3827.5,0.133]
[1761898963183,0.5661,3828.2,3828.1,0.803]
[1761898963490,0.7817,3828.2,3828.1,0.803]
[1761898963684,0.2228,3828.2,3828.1,0.803]
[1761898963884,0.2228,3828.5,3828.4,0.803]
[1761898964379,0.5661,3828.5,3828.4,0.803]
[1761898964578,0.2228,3828.5,3828.4,0.803]
[1761898964983,0.5661,3828.8,3828.7,0.4657]
[1761898965183,0.5661,3828.8,3828.7,0.803]
[1761898965585,0.7817,3828.6,3828.5,3.4392]
[1761898966088,0.7817,3828.6,3828.5,4.0108]
[1761898966685,0.7817,3828.6,3828.5,4.1438]
[1761898969691,0.57823196,3829.0,3828.9,0.803]
[1761898970091,0.44133196,3829.0,3828.9,0.803]
[1761898970294,0.78463196,3829.0,3828.9,0.803]
[1761898970586,0.5661,3828.6,3828.5,3.4392]
[1761898970792,0.7817,3828.6,3828.5,3.4392]
[1761898970988,0.5661,3828.9,3828.8,0.4657]
[1761898971192,0.7817,3828.9,3828.8,0.803]
[1761898971382,0.7817,3828.9,3828.8,0.4657]
[1761898971582,0.7817,3828.9,3828.8,0.803]
[1761898975502,0.7817,3828.6,3828.5,3.7765]
[1761898976097,0.7817,3828.6,3828.5,4.0108]
[1761898976494,0.7817,3828.9,3828.8,0.803]
[1761898976895,0.7817,3828.6,3828.5,3.7765]
[1761898977290,0.7817,3828.6,3828.5,4.0108]
[1761898977998,0.7817,3828.6,3828.5,0.5687]
[1761898979087,0.7817,3828.6,3828.5,0.936]
[1761898979088,0.2228,3828.6,3828.5,0.936]
[1761898979292,0.5661,3828.6,3828.5,0.936]
[1761898979491,0.7817,3828.6,3828.5,0.803]
[1761898980593,3.2078,3828.9,3828.8,0.803]
[1761898980794,3.9895,3828.9,3828.8,0.4657]
[1761898981392,0.2156,3828.3,3828.2,0.2314]
[1761898981692,0.7817,3828.3,3828.2,0.4657]
[1761898982200,0.5661,3827.7,3827.6,0.4657]
[1761898982899,0.5661,3827.7,3827.6,0.803]
[1761898986200,0.2228,3827.7,3827.6,0.803]
[1761898986897,0.4738,3828.0,3827.6,0.803]
[1761898987405,0.5689,3828.0,3827.9,0.803]
[1761898988104,0.9122,3828.0,3827.9,0.803]
[1761898988305,0.9122,3828.0,3827.9,0.2314]
[1761898988506,0.9122,3828.0,3827.9,0.5687]
[1761898988899,0.9122,3828.0,3827.9,0.803]
[1761898989101,0.5589,3828.3,3828.2,0.2343]
[1761898989300,0.86339751,3828.3,3828.2,0.803]
[1761898991108,0.7817,3828.3,3828.2,0.803]
[1761898991304,0.86339688,3828.3,3828.2,0.803]
[1761898991904,1.38729941,3828.6,3828.5,0.773]
[1761898992109,0.53389618,3828.6,3828.5,0.2176]
[1761898992511,0.88199618,3828.6,3828.5,0.2176]
[1761898992714,0.88199618,3828.6,3828.5,0.773]
[1761898993716,0.8003,3828.6,3828.5,0.9048]
[1761898994015,0.8003,3828.6,3828.5,4.1126]
[1761898995216,0.8003,3828.9,3828.8,0.773]
[1761898995516,0.88198641,3828.9,3828.8,0.773]
[1761898997308,0.30838641,3828.9,3828.8,0.773]
[1761898997615,0.2267,3828.9,3828.8,0.773]
[1761898998014,0.00293196,3829.0,3828.9,0.7614]
[1761898998517,0.7723,3828.6,3828.5,3.7458]
[1761898998718,0.7723,3828.6,3828.5,3.9692]
[1761898999016,0.7723,3828.6,3828.5,44.7692]
[1761898999217,0.7723,3828.6,3828.5,3.9692]
[1761899000514,0.00293196,3829.0,3828.9,0.7614]
[1761899000720,0.00293196,3829.0,3828.9,3.9692]
[1761899001012,1.26549941,3830.4,3830.3,0.2147]
[1761899001220,0.5235651,3830.4,3830.3,0.4381]
[1761899001610,0.8539651,3830.4,3830.3,0.4381]
[1761899001814,0.85632036,3830.4,3830.3,0.44077581]
[1761899002015,0.85632036,3830.4,3830.3,0.76407581]
[1761899002422,0.85630803,3830.4,3830.3,0.76407581]
[1761899002820,0.77465526,3830.4,3830.3,0.76407581]
[1761899004721,0.5483,3831.2,3831.1,0.7614]
[1761899005121,0.7723,3831.2,3831.1,0.7614]
[1761899005718,0.7723,3831.2,3830.4,0.3233]
[1761899005719,0.7723,3830.9,3830.4,0.3233]
[1761899005922,0.9128,3830.5,3830.4,0.7614]
[1761899006423,0.7723,3830.5,3830.4,0.7614]
[1761899006629,0.7723,3830.8,3830.7,0.7614]
[1761899007726,3.2109859,3831.2,3830.7,0.7614]